[Event "LR Global GM Aspirant-1 2024"]
[Site "Dhaka"]
[Date "2024.02.19"]
[Round "9.3"]
[White "Rahman, Ziaur"]
[Black "Aradhya, Garg"]
[Result "1/2-1/2"]
[ECO "B14"]
[WhiteElo "2428"]
[BlackElo "2390"]
[Annotator "TA"]
[PlyCount "86"]
[EventDate "2024.02.12"]
[EventType "tourn"]
[EventCountry "BAN"]
[SourceTitle "playchess.com"]
[Source "ChessBase"]
[SourceQuality "1"]
[TimeControl "5400+30"]

{[%evp 14,86,7,0,0,12,0,0,0,9,2,0,0,-7,16,6,6,7,6,10,21,20,16,0,0,0,0,0,0,-14,17,-62,-67,-56,-56,-56,-66,-68,-64,-59,-28,-58,-67,-49,-53,-52,-35,-52,-47,-45,-45,-76,-41,-55,-45,-115,-62,-54,-29,-134,-98,-102,-124,-121,-94,-93,-77,-85,-82,-60,-58,-54,-60,-80,0]} 1. Nf3 {[%emt 0:01:34]} d5 {[%emt 0:00:04]} 2. e3 {[%emt 0:00:31]} Nf6 {[%emt 0:00:28]} 3. c4 {[%emt 0:00:11]} e6 {[%emt 0:00:10]} 4. Nc3 {[%emt 0:00:10]} c5 {[%emt 0:01:12]} 5. cxd5 {[%emt 0:00:16]} exd5 {[%emt 0:00:06]} 6. d4 {[%emt 0:00:12]} Nc6 {[%emt 0:00:06]} 7. Bb5 {[%emt 0:00:09]} cxd4 {[%emt 0:00:08]} 8. exd4 {[%emt 0:04:43]} Bd6 {[%emt 0:00:10]} 9. O-O {[%emt 0:00:56]} O-O {[%emt 0:00:47]} 10. Bg5 {[%emt 0:07:03]} Bg4 {[%emt 0:06:20][%cal Bc8g4,Bg4h5,Bh5g6,Bg6f5][%mdl 32] The position is equal.} 11. Bxc6 {[%emt 0:01:32]} bxc6 {[%emt 0:00:30]} 12. h3 {[%emt 0:01:07]} Bh5 {[%emt 0:05:14]} 13. Qd3 {[%emt 0:02:36]} Bg6 {[%emt 0:05:50]} (13... Rb8 {looks sharper.} 14. Ne5 Rxb2 15. Nxc6 Qa8) 14. Qd2 {[%emt 0:00:41]} Re8 {[%emt 0:19:51]} 15. Rfe1 {[%emt 0:02:07]} Qc7 {[%emt 0:02:35]} 16. Bxf6 {[%emt 0:08:44]} gxf6 {[%emt 0:00:05]} 17. g3 {[%emt 0:04:32]} Qd7 {[%emt 0:02:38]} 18. Kg2 {[%emt 0:01:52]} (18. Kh2 {with more complications.} Kg7 19. Nh4 h5 20. Kg2) 18... Bf5 {[%emt 0:00:08]} 19. Qh6 {[%emt 0:01:42]} Bf8 {[%emt 0:00:09]} 20. Qh4 {[%emt 0:10:05]} Bg7 {[%emt 0:00:40]} 21. Nh2 {[%emt 0:01:42]} c5 {[%emt 0:04:40]} 22. Rad1 {[%emt 0:01:17]} (22. Kg1 $11) 22... Rxe1 $15 {[%emt 0:04:20]} 23. Rxe1 {[%emt 0:00:05]} cxd4 {[%emt 0:00:04]} 24. Qxd4 {[%emt 0:00:24]} Bxh3+ {[%emt 0:00:10]} 25. Kg1 {[%emt 0:00:05]} Be6 {[%emt 0:02:10]} 26. Nf3 {[%emt 0:01:03]} Rd8 {[%emt 0:04:58]} 27. Qh4 {[%emt 0:02:21]} d4 {[%emt 0:02:46]} 28. Ne4 {[%emt 0:00:39]} Qe7 {[%emt 0:01:06][%cal Od4d3]} (28... Bxa2 29. Nxf6+ Bxf6 30. Qxf6 $11) 29. Ne5 {[%emt 0:01:23]} Bd5 {[%emt 0:16:15] Inhibits Nc6.} (29... Bxa2 $2 30. Nc6 Qe6 31. Nxd8 $18) 30. Nd3 {[%emt 0:01:02]} Ba8 {[%emt 0:02:55]} 31. f3 {[%emt 0:04:57]} Qe6 $36 {[%emt 0:01:54][%cal Oe6a6][%mdl 2048] Black is more active.} 32. b3 {[%emt 0:06:57]} Qf5 {[%emt 0:01:26]} 33. Kg2 {[%emt 0:01:27]} Rc8 {[%emt 0:02:44] ...Rc2+ is the strong threat.} 34. g4 {[%emt 0:01:20]} (34. Re2 $15) 34... Qe6 {[%emt 0:00:56]} ({Black should play} 34... Qb5 $17 35. Nec5 Bd5 (35... Rxc5 36. Nxc5 Qxc5 37. Re8+ Bf8 38. Rxa8 $16)) 35. Ndc5 {[%emt 0:02:25]} Qd5 {[%emt 0:00:38]} (35... Qe7 $5) 36. b4 {[%emt 0:10:38]} (36. Nxf6+ $11 Bxf6 37. Qxf6 Qxc5 38. Re5 Qc2+ 39. Kh3) 36... f5 {[%emt 0:00:38]} 37. gxf5 {[%emt 0:00:23]} Qxf5 {[%emt 0:00:04]} (37... Qxa2+ 38. Kh1 f6 39. Rg1 (39. Nxf6+ Bxf6 40. Rg1+ Bg7 $17) 39... Bxe4 40. Nxe4 $18) 38. Qg3 {[%emt 0:01:08]} Qg6 {[%emt 0:01:07]} 39. Kf2 {[%emt 0:00:30]} d3 {[%emt 0:00:30] White must now prevent ...Bxe4.} 40. Qxg6 {[%emt 0:00:30]} hxg6 {[%emt 0:00:30]} 41. Nxd3 {[%emt 0:01:42]} Bd5 {[%emt 0:05:08]} 42. Re2 {[%emt 0:01:46]} Bd4+ {[%emt 0:00:20] A strong pair of Bishops.} 43. Kg3 {[%emt 0:00:46] [#]} a5 {[%emt 0:00:24] Weighted Error Value: White=0.13 (very precise) /Black=0.11 (very precise) .  Mistake:       	White=3     	Black=2      Inaccurate:     	White=2     	Black=3      OK:         	White=10    	Black=14     Best:        	White=4     	Black=2} 1/2-1/2

[Event "LR Global GM Aspirant-1 2024"]
[Site "Dhaka"]
[Date "2024.02.19"]
[Round "9.4"]
[White "Liyanage, Ranindu Dilshan"]
[Black "Siddharth, Jagadeesh"]
[Result "1/2-1/2"]
[ECO "E92"]
[WhiteElo "2366"]
[BlackElo "2457"]
[Annotator "TA"]
[PlyCount "60"]
[EventDate "2024.02.12"]
[EventType "tourn"]
[EventCountry "BAN"]
[SourceTitle "playchess.com"]
[Source "ChessBase"]
[SourceQuality "1"]
[TimeControl "5400+30"]

{[%evp 26,60,0,0,0,0,0,0,0,0,17,0,24,6,9,0,0,0,0,0,0,0,0,0,0,0,0,0,0,0,0,0,0,0,0,0,0]} 1. d4 {[%emt 0:00:22]} Nf6 {[%emt 0:00:43]} 2. c4 {[%emt 0:00:31]} g6 {[%emt 0:00:07]} 3. Nc3 {[%emt 0:00:31]} Bg7 {[%emt 0:00:07]} 4. e4 {[%emt 0:00:17]} d6 {[%emt 0:00:08]} 5. Nf3 {[%emt 0:00:20]} O-O {[%emt 0:00:10]} 6. Be2 {[%emt 0:00:06]} e5 {[%emt 0:00:05]} 7. dxe5 {[%emt 0:00:28]} dxe5 {[%emt 0:00:08]} 8. Qxd8 {[%emt 0:00:21]} Rxd8 {[%emt 0:00:49]} 9. Bg5 {[%emt 0:00:06]} Re8 {[%emt 0:01:11]} 10. Nd5 {[%emt 0:00:09]} Nxd5 {[%emt 0:00:11]} 11. cxd5 {[%emt 0:00:06]} c6 {[%emt 0:00:39]} 12. Bc4 {[%emt 0:04:47]} cxd5 {[%emt 0:01:56]} 13. Bxd5 {[%emt 0:00:08]} Na6 {[%emt 0:00:06]} 14. O-O {[%emt 0:06:25]} Nb4 {[%emt 0:00:17]} 15. Bb3 {[%emt 0:02:59]} Be6 {[%emt 0:00:25]} 16. Bxe6 {[%emt 0:03:38]} Rxe6 {[%emt 0:00:07]} 17. Rfd1 {[%emt 0:00:20]} h6 {[%emt 0:00:16]} 18. Bd2 {[%emt 0:01:54]} Nc6 {[%emt 0:00:09]} 19. Bc3 {[%emt 0:00:50]} Nd4 {[%emt 0:00:14] The position is equal.} 20. Nxd4 {[%emt 0:03:26]} exd4 {[%emt 0:00:07]} 21. Bxd4 {[%emt 0:00:07]} Rxe4 {[%emt 0:00:10]} 22. Bxg7 {[%emt 0:00:09]} Kxg7 $11 {[%emt 0:00:04][%mdl 4096] Endgame. KRR-KRR} 23. Kf1 {[%emt 0:00:10] Against Re2} Rae8 {[%emt 0:00:12]} 24. Rd2 {[%emt 0:00:45]} R8e7 {[%emt 0:00:19]} 25. Rc1 {[%emt 0:00:16]} b6 {[%emt 0:00:06]} 26. g3 {[%emt 0:00:11]} h5 {[%emt 0:00:07]} 27. h4 {[%emt 0:00:06]} R4e5 {[%emt 0:00:12]} 28. b3 {[%emt 0:00:26]} Re4 {[%emt 0:00:26]} 29. Rc3 {[%emt 0:00:09]} Re1+ {[%emt 0:00:07]} 30. Kg2 {[%emt 0:00:04]} R1e2 {[%emt 0:00:06] An uneventful encounter.   Weighted Error Value: White=0.03 (flawless) /Black=0.03 (flawless) .  OK:         	White=7     	Black=4} 1/2-1/2

[Event "LR Global GM Aspirant-1 2024"]
[Site "Dhaka"]
[Date "2024.02.19"]
[Round "9.5"]
[White "Panesar Vedant"]
[Black "Mohammad Fahad, Rahman"]
[Result "1/2-1/2"]
[ECO "B45"]
[WhiteElo "2452"]
[BlackElo "2418"]
[Annotator "TA"]
[PlyCount "37"]
[EventDate "2024.02.12"]
[EventType "tourn"]
[EventCountry "BAN"]
[SourceTitle "playchess.com"]
[Source "ChessBase"]
[SourceQuality "1"]
[TimeControl "5400+30"]

{[%evp 11,37,23,24,18,30,29,25,35,23,20,35,11,16,10,12,17,20,19,10,10,43,-12,0,0,28,0,0,0]} 1. e4 {[%emt 0:00:43]} c5 {[%emt 0:00:05]} 2. Nf3 {[%emt 0:00:06][%cal Bg1f3,Bf3d4,Bd4b5,Bb5d6,Bd6f5][%mdl 32]} Nc6 {[%emt 0:00:05]} 3. d4 {[%emt 0:00:10]} cxd4 {[%emt 0:00:08]} 4. Nxd4 {[%emt 0:00:06]} Nf6 {[%emt 0:00:43]} 5. Nc3 {[%emt 0:00:08]} e6 {[%emt 0:00:04][%cal Be7e6,Be6e5][%mdl 32]} 6. Ndb5 {[%emt 0:00:26]} Bc5 {[%emt 0:00:13]} 7. Nd6+ {[%emt 0:01:24]} Ke7 {[%emt 0:00:07]} 8. Bf4 {[%emt 0:00:05]} e5 $1 {[%emt 0:00:06]} 9. Nf5+ {[%emt 0:00:09] White has an edge.} Kf8 {[%emt 0:00:02]} 10. Bg5 {[%emt 0:01:38]} Bb4 {[%emt 0:00:32]} 11. Bc4 {[%emt 0:10:17] [#] And now 0-0 would win.} (11. Ne3 {simplifies} Qa5 12. f3 Bxc3+ 13. bxc3 Qxc3+ 14. Kf2) 11... d5 {[%emt 0:00:12]} 12. exd5 {[%emt 0:02:48]} (12. Bxf6 {seems wilder.} Qxf6 13. Qxd5 Bxf5 14. exf5 g6 15. O-O) 12... Bxf5 {[%emt 0:06:29]} 13. dxc6 {[%emt 0:00:07]} Qxd1+ {[%emt 0:06:03]} 14. Rxd1 {[%emt 0:00:32]} bxc6 {[%emt 0:00:01]} (14... Bxc3+ 15. bxc3 bxc6 16. Bd3 Bxd3 17. cxd3 $14) 15. Bd3 {[%emt 0:01:34]} Bg4 {[%emt 0:02:02]} 16. Be2 {[%emt 0:00:00]} (16. f3 $14 Be6 17. a3) 16... Bf5 {[%emt 0:00:01]} 17. Bd3 {[%emt 0:00:01]} Bg4 {[%emt 0:00:02]} 18. Be2 {[%emt 0:00:00]} Bf5 {[%emt 0:00:01]} 19. Bd3 {[%emt 0:00:48] A rather calm draw.   Weighted Error Value: White=0.13 (very precise) /Black=0.03 (flawless) .  Mistake:       	White=1     	---        Inaccurate:     	White=1     	Black=2      OK:         	White=7     	Black=6      Best:        	---       	Black=2      Strong:       	---       	Black=1} 1/2-1/2